[Event "Early-Titled-Tuesday-Blitz-October-10-2023"]
[Site "Chess.com"]
[Date "2023.10.10"]
[Round "9"]
[White "DenLaz"]
[Black "SALVA-DALI"]
[Result "1-0"]
[WhiteElo "3058"]
[BlackElo "2765"]
[TimeControl "180+1"]
[EndTime "9:43:37 PDT"]
[Termination "DenLaz won by resignation"]

1. d4 {[%clk 0:03:00.9]} 1... c5 {[%clk 0:03:00]} 2. d5 {[%clk 0:03:01.1]} 2...
d6 {[%clk 0:03:00.6]} 3. c4 {[%clk 0:02:59.1]} 3... Nf6 {[%clk 0:03:01.1]} 4.
Nc3 {[%clk 0:02:59.2]} 4... g6 {[%clk 0:03:01.8]} 5. e4 {[%clk 0:02:59.7]} 5...
Bg7 {[%clk 0:03:02.6]} 6. h3 {[%clk 0:03:00.1]} 6... O-O {[%clk 0:03:03.4]} 7.
Nf3 {[%clk 0:03:00.7]} 7... e6 {[%clk 0:03:04.1]} 8. Bd3 {[%clk 0:03:01.3]} 8...
exd5 {[%clk 0:03:04.8]} 9. cxd5 {[%clk 0:03:02.1]} 9... a6 {[%clk 0:03:05.1]}
10. a4 {[%clk 0:03:01.7]} 10... Nbd7 {[%clk 0:03:04.6]} 11. O-O {[%clk
0:03:01.5]} 11... Nh5 {[%clk 0:03:05.3]} 12. Bg5 {[%clk 0:03:01]} 12... Qb6
{[%clk 0:03:03.8]} 13. Qd2 {[%clk 0:02:53.5]} 13... Ne5 {[%clk 0:03:04]} 14. Be2
{[%clk 0:02:52.6]} 14... Nxf3+ {[%clk 0:03:02.1]} 15. Bxf3 {[%clk 0:02:53.5]}
15... Nf6 {[%clk 0:03:02.6]} 16. a5 {[%clk 0:02:50.8]} 16... Qc7 {[%clk
0:03:02]} 17. e5 {[%clk 0:02:41.7]} 17... Nd7 {[%clk 0:02:42.6]} 18. exd6 {[%clk
0:02:40.8]} 18... Qxd6 {[%clk 0:02:43.2]} 19. Ne4 {[%clk 0:02:41.3]} 19... Qe5
{[%clk 0:02:43.4]} 20. Rab1 {[%clk 0:02:18.7]} 20... Qd4 {[%clk 0:02:41.8]} 21.
Qe2 {[%clk 0:01:43.5]} 21... Ne5 {[%clk 0:02:35.5]} 22. Rfd1 {[%clk 0:01:40.5]}
22... Nxf3+ {[%clk 0:02:31.9]} 23. Qxf3 {[%clk 0:01:39.7]} 23... Qb4 {[%clk
0:02:32.6]} 24. Bd2 {[%clk 0:01:08.9]} 24... Qb5 {[%clk 0:02:28.7]} 25. Nf6+
{[%clk 0:01:04.7]} 25... Kh8 {[%clk 0:02:27.8]} 26. Bc3 {[%clk 0:01:05.1]} 26...
Bf5 {[%clk 0:02:28]} 27. Rbc1 {[%clk 0:01:04.7]} 27... c4 {[%clk 0:02:21.5]} 28.
Qf4 {[%clk 0:00:46.9]} 28... Rad8 {[%clk 0:02:16.9]} 29. Qh4 {[%clk 0:00:43.6]}
29... h6 {[%clk 0:02:02.8]} 30. Ng4 {[%clk 0:00:35.1]} 30... h5 {[%clk
0:01:02.4]} 31. Nf6 {[%clk 0:00:34.1]} 31... Rd6 {[%clk 0:00:57.2]} 32. g4
{[%clk 0:00:34.3]} 32... Bd3 {[%clk 0:00:53.1]} 33. gxh5 {[%clk 0:00:34.3]}
33... g5 {[%clk 0:00:52.7]} 34. Qxg5 {[%clk 0:00:34.6]} 34... Rxf6 {[%clk
0:00:30.3]} 35. Bxf6 {[%clk 0:00:32.1]} 35... Rg8 {[%clk 0:00:28]} 36. Qh6+
{[%clk 0:00:25.7]} 36... Bh7 {[%clk 0:00:28.6]} 37. Kh2 {[%clk 0:00:20.5]} 37...
Qc5 {[%clk 0:00:27.3]} 38. Bxg7+ {[%clk 0:00:20.6]} 38... Rxg7 {[%clk
0:00:27.6]} 39. Qf6 {[%clk 0:00:21.2]} 39... Kg8 {[%clk 0:00:21.9]} 40. Rg1
{[%clk 0:00:21.2]} 1-0

[Event "Early-Titled-Tuesday-Blitz-October-10-2023"]
[Site "Chess.com"]
[Date "2023.10.10"]
[Round "9"]
[White "CSB7"]
[Black "Zq1"]
[Result "0-1"]
[WhiteElo "2732"]
[BlackElo "2533"]
[TimeControl "180+1"]
[EndTime "9:43:38 PDT"]
[Termination "Zq1 won by resignation"]

1. e4 {[%clk 0:02:59.6]} 1... c5 {[%clk 0:02:59.7]} 2. Nf3 {[%clk 0:02:58.8]}
2... d6 {[%clk 0:02:59.9]} 3. d4 {[%clk 0:02:57.8]} 3... cxd4 {[%clk 0:02:59.8]}
4. Nxd4 {[%clk 0:02:58.7]} 4... Nf6 {[%clk 0:02:59.6]} 5. Nc3 {[%clk 0:02:59.2]}
5... Nc6 {[%clk 0:02:59.6]} 6. Nd5 {[%clk 0:02:54.4]} 6... e6 {[%clk 0:02:45.8]}
7. Nxf6+ {[%clk 0:02:53.4]} 7... gxf6 {[%clk 0:02:41.8]} 8. Be3 {[%clk
0:02:47.6]} 8... a6 {[%clk 0:02:41.7]} 9. Nxc6 {[%clk 0:02:24.8]} 9... bxc6
{[%clk 0:02:41]} 10. Qh5 {[%clk 0:02:25.4]} 10... a5 {[%clk 0:02:23.1]} 11.
O-O-O {[%clk 0:02:21.3]} 11... a4 {[%clk 0:02:18]} 12. Bd2 {[%clk 0:01:10.8]}
12... a3 {[%clk 0:02:08.6]} 13. b3 {[%clk 0:01:08.6]} 13... Qb6 {[%clk
0:01:53.9]} 14. Qf3 {[%clk 0:01:08.5]} 14... Be7 {[%clk 0:00:50.2]} 15. Bc3
{[%clk 0:01:08.3]} 15... e5 {[%clk 0:00:50.3]} 16. Bc4 {[%clk 0:01:04.1]} 16...
Be6 {[%clk 0:00:50]} 17. Bxe6 {[%clk 0:00:54.1]} 17... fxe6 {[%clk 0:00:49.9]}
18. Rd3 {[%clk 0:00:49.3]} 18... d5 {[%clk 0:00:48.2]} 19. Qh5+ {[%clk
0:00:33.5]} 19... Kd7 {[%clk 0:00:41.3]} 20. f4 {[%clk 0:00:34.4]} 20... exf4
{[%clk 0:00:31.1]} 21. Qg4 {[%clk 0:00:29]} 21... Rhg8 {[%clk 0:00:26.6]} 22.
Qxf4 {[%clk 0:00:29.1]} 22... Rxg2 {[%clk 0:00:25.2]} 23. Rhd1 {[%clk
0:00:28.1]} 23... Qf2 {[%clk 0:00:22]} 24. Qxf2 {[%clk 0:00:23.5]} 24... Rxf2
{[%clk 0:00:22.2]} 25. exd5 {[%clk 0:00:18.5]} 25... cxd5 {[%clk 0:00:21.3]} 26.
R3d2 {[%clk 0:00:18.8]} 26... Rxd2 {[%clk 0:00:20.1]} 27. Bxd2 {[%clk
0:00:15.1]} 27... Rg8 {[%clk 0:00:20.4]} 28. Bf4 {[%clk 0:00:12.7]} 28... e5
{[%clk 0:00:19.2]} 29. Bg3 {[%clk 0:00:11.7]} 29... Ke6 {[%clk 0:00:19.3]} 30.
c3 {[%clk 0:00:12.1]} 30... h5 {[%clk 0:00:18.1]} 31. Kc2 {[%clk 0:00:10.8]}
31... f5 {[%clk 0:00:18.2]} 32. c4 {[%clk 0:00:10.7]} 32... d4 {[%clk 0:00:17]}
33. Kd3 {[%clk 0:00:08.4]} 33... h4 {[%clk 0:00:16.8]} 34. Bxh4 {[%clk
0:00:07.7]} 34... Bxh4 {[%clk 0:00:15.6]} 0-1

[Event "Early-Titled-Tuesday-Blitz-October-10-2023"]
[Site "Chess.com"]
[Date "2023.10.10"]
[Round "9"]
[White "Eloist"]
[Black "AnaKuchava"]
[Result "1-0"]
[WhiteElo "2440"]
[BlackElo "2250"]
[TimeControl "180+1"]
[EndTime "9:43:38 PDT"]
[Termination "Eloist won on time"]

1. e4 {[%clk 0:03:00.9]} 1... c5 {[%clk 0:02:59.1]} 2. Nf3 {[%clk 0:02:59.7]}
2... d6 {[%clk 0:02:56.2]} 3. Bb5+ {[%clk 0:02:59.3]} 3... Bd7 {[%clk
0:02:55.6]} 4. Bxd7+ {[%clk 0:02:59.3]} 4... Qxd7 {[%clk 0:02:56.5]} 5. c4
{[%clk 0:02:58.9]} 5... Nc6 {[%clk 0:02:53.3]} 6. d4 {[%clk 0:02:58.1]} 6...
cxd4 {[%clk 0:02:53]} 7. Nxd4 {[%clk 0:02:58]} 7... Nf6 {[%clk 0:02:52.1]} 8.
Nc3 {[%clk 0:02:57.8]} 8... g6 {[%clk 0:02:50.5]} 9. f3 {[%clk 0:02:55.2]} 9...
Bg7 {[%clk 0:02:47.7]} 10. Be3 {[%clk 0:02:54.9]} 10... a6 {[%clk 0:02:44.7]}
11. O-O {[%clk 0:02:53.3]} 11... O-O {[%clk 0:02:43.8]} 12. Qd3 {[%clk 0:02:46]}
12... Ne5 {[%clk 0:02:40.8]} 13. Qe2 {[%clk 0:02:44.2]} 13... Rac8 {[%clk
0:02:39.4]} 14. b3 {[%clk 0:02:41.8]} 14... b5 {[%clk 0:02:36.8]} 15. Nd5 {[%clk
0:02:37.2]} 15... Nxd5 {[%clk 0:02:30.2]} 16. cxd5 {[%clk 0:02:37.1]} 16... Bf6
{[%clk 0:01:23.5]} 17. h3 {[%clk 0:02:33.6]} 17... Qb7 {[%clk 0:01:14.6]} 18.
Rac1 {[%clk 0:02:24.1]} 18... Rxc1 {[%clk 0:01:13]} 19. Rxc1 {[%clk 0:02:23.5]}
19... Rc8 {[%clk 0:01:13.6]} 20. Rxc8+ {[%clk 0:02:20.2]} 20... Qxc8 {[%clk
0:01:14.5]} 21. f4 {[%clk 0:02:18.3]} 21... Nd7 {[%clk 0:01:13.2]} 22. Nc6
{[%clk 0:02:14.2]} 22... Nb8 {[%clk 0:01:12.5]} 23. e5 {[%clk 0:02:00.8]} 23...
dxe5 {[%clk 0:00:26]} 24. fxe5 {[%clk 0:02:00.4]} 24... Bh4 {[%clk 0:00:26.2]}
25. Qc2 {[%clk 0:01:21.1]} 25... Nxc6 {[%clk 0:00:14.1]} 26. Qxc6 {[%clk
0:01:18]} 26... Qf5 {[%clk 0:00:09.5]} 27. Bd4 {[%clk 0:00:58.3]} 27... Bg3
{[%clk 0:00:06.6]} 28. Qe8+ {[%clk 0:00:39.2]} 28... Kg7 {[%clk 0:00:06.5]} 29.
e6+ {[%clk 0:00:39.6]} 29... Kh6 {[%clk 0:00:01.6]} 30. Qf8+ {[%clk 0:00:24.9]}
30... Kh5 {[%clk 0:00:01.8]} 31. Qxf7 {[%clk 0:00:25.5]} 31... Qb1+ {[%clk
0:00:01.7]} 32. Qf1 {[%clk 0:00:25.3]} 32... Bh2+ {[%clk 0:00:02.4]} 33. Kf2
{[%clk 0:00:25.6]} 33... Qxf1+ {[%clk 0:00:03.2]} 34. Kxf1 {[%clk 0:00:25.6]}
1-0

[Event "Early-Titled-Tuesday-Blitz-October-10-2023"]
[Site "Chess.com"]
[Date "2023.10.10"]
[Round "9"]
[White "Lion-Al-Messi"]
[Black "scarabee43"]
[Result "1-0"]
[WhiteElo "2635"]
[BlackElo "2770"]
[TimeControl "180+1"]
[EndTime "9:43:39 PDT"]
[Termination "Lion-Al-Messi won by checkmate"]

1. e4 {[%clk 0:03:00.9]} 1... c5 {[%clk 0:02:59.8]} 2. Nf3 {[%clk 0:03:01.1]}
2... e6 {[%clk 0:03:00]} 3. d4 {[%clk 0:03:01.4]} 3... cxd4 {[%clk 0:03:00.7]}
4. Nxd4 {[%clk 0:03:02.3]} 4... Nc6 {[%clk 0:03:01.1]} 5. Nc3 {[%clk 0:03:01.5]}
5... Qc7 {[%clk 0:03:01.5]} 6. Be3 {[%clk 0:03:01.9]} 6... a6 {[%clk 0:03:01.2]}
7. Qd2 {[%clk 0:03:02.4]} 7... Nf6 {[%clk 0:03:00.4]} 8. O-O-O {[%clk 0:03:03]}
8... Be7 {[%clk 0:03:00.3]} 9. f3 {[%clk 0:03:02.1]} 9... b5 {[%clk 0:03:00.1]}
10. Nxc6 {[%clk 0:02:58.7]} 10... Qxc6 {[%clk 0:02:52.1]} 11. e5 {[%clk
0:02:58.2]} 11... b4 {[%clk 0:02:48.8]} 12. Ne4 {[%clk 0:02:45.2]} 12... Nxe4
{[%clk 0:02:42.5]} 13. fxe4 {[%clk 0:02:46.1]} 13... Qxe4 {[%clk 0:02:42.7]} 14.
Bd3 {[%clk 0:02:44.3]} 14... Qxe5 {[%clk 0:02:41.9]} 15. Bf4 {[%clk 0:02:37.8]}
15... Qa5 {[%clk 0:02:36.6]} 16. Kb1 {[%clk 0:02:35.3]} 16... O-O {[%clk
0:02:34.4]} 17. Rhe1 {[%clk 0:02:31.6]} 17... Bb7 {[%clk 0:02:31.6]} 18. Re5
{[%clk 0:02:31.6]} 18... Bd5 {[%clk 0:02:30.7]} 19. b3 {[%clk 0:02:22.2]} 19...
Bf6 {[%clk 0:02:27.1]} 20. Rh5 {[%clk 0:02:17.7]} 20... g6 {[%clk 0:02:23.4]}
21. Be5 {[%clk 0:02:10.8]} 21... Bxe5 {[%clk 0:01:47.2]} 22. Qh6 {[%clk
0:02:00.4]} 22... Rfc8 {[%clk 0:01:32.9]} 23. Qxh7+ {[%clk 0:01:59.6]} 23... Kf8
{[%clk 0:01:33.3]} 24. Rxe5 {[%clk 0:02:00.2]} 24... Qc5 {[%clk 0:00:53.9]} 25.
Rf1 {[%clk 0:01:39.8]} 25... Ke7 {[%clk 0:00:46.8]} 26. Rxf7+ {[%clk 0:01:38.2]}
26... Kd6 {[%clk 0:00:47.3]} 27. Rxd7+ {[%clk 0:01:37.9]} 27... Kc6 {[%clk
0:00:40.5]} 28. Rdxd5 {[%clk 0:00:55.9]} 28... exd5 {[%clk 0:00:21.1]} 29. Re6+
{[%clk 0:00:55.4]} 29... Qd6 {[%clk 0:00:21.7]} 30. Rxd6+ {[%clk 0:00:55.8]}
30... Kxd6 {[%clk 0:00:22.4]} 31. Qxg6+ {[%clk 0:00:55]} 31... Kc5 {[%clk
0:00:23.1]} 32. h4 {[%clk 0:00:48.7]} 32... a5 {[%clk 0:00:23.7]} 33. Qe6 {[%clk
0:00:40.6]} 33... a4 {[%clk 0:00:23.3]} 34. Qe7+ {[%clk 0:00:34.4]} 34... Kc6
{[%clk 0:00:20.6]} 35. Qxb4 {[%clk 0:00:34.8]} 35... a3 {[%clk 0:00:20.3]} 36.
Bb5+ {[%clk 0:00:32.5]} 36... Kc7 {[%clk 0:00:20.9]} 37. Qc5+ {[%clk 0:00:31.7]}
37... Kb7 {[%clk 0:00:21.5]} 38. Qxd5+ {[%clk 0:00:24.6]} 38... Kb6 {[%clk
0:00:21.8]} 39. c4 {[%clk 0:00:24.7]} 39... Rf8 {[%clk 0:00:20.2]} 40. Qd6+
{[%clk 0:00:24.9]} 40... Kb7 {[%clk 0:00:18.8]} 41. Bc6+ {[%clk 0:00:21.1]}
41... Kc8 {[%clk 0:00:18.5]} 42. Qd7+ {[%clk 0:00:21.3]} 42... Kb8 {[%clk
0:00:18.2]} 43. Qb7# {[%clk 0:00:22.2]} 1-0

[Event "Early-Titled-Tuesday-Blitz-October-10-2023"]
[Site "Chess.com"]
[Date "2023.10.10"]
[Round "9"]
[White "ViktoriyaTarasova"]
[Black "Roman_Ovetchkin"]
[Result "0-1"]
[WhiteElo "2398"]
[BlackElo "2700"]
[TimeControl "180+1"]
[EndTime "9:43:40 PDT"]
[Termination "Roman_Ovetchkin won on time"]

1. d4 {[%clk 0:03:00.9]} 1... Nf6 {[%clk 0:02:58.5]} 2. c4 {[%clk 0:02:56.3]}
2... c5 {[%clk 0:02:57.5]} 3. d5 {[%clk 0:02:55.2]} 3... b5 {[%clk 0:02:57.6]}
4. cxb5 {[%clk 0:02:55.1]} 4... a6 {[%clk 0:02:57.6]} 5. bxa6 {[%clk 0:02:55.3]}
5... g6 {[%clk 0:02:57.9]} 6. Nc3 {[%clk 0:02:55.1]} 6... Bg7 {[%clk 0:02:57.5]}
7. Nf3 {[%clk 0:02:55.3]} 7... O-O {[%clk 0:02:57.2]} 8. e4 {[%clk 0:02:55.7]}
8... Qa5 {[%clk 0:02:54.1]} 9. Bd2 {[%clk 0:02:53.1]} 9... Bxa6 {[%clk
0:02:46.1]} 10. Be2 {[%clk 0:02:53.1]} 10... Bxe2 {[%clk 0:01:56.5]} 11. Qxe2
{[%clk 0:02:50.3]} 11... Qa6 {[%clk 0:01:54.5]} 12. Qxa6 {[%clk 0:02:23]} 12...
Nxa6 {[%clk 0:01:53.4]} 13. Ke2 {[%clk 0:02:22.7]} 13... Rfb8 {[%clk 0:01:50.8]}
14. b3 {[%clk 0:01:56.8]} 14... d6 {[%clk 0:01:37.2]} 15. Rhb1 {[%clk
0:01:32.9]} 15... Nb4 {[%clk 0:01:25.6]} 16. a4 {[%clk 0:01:10.1]} 16... Nc2
{[%clk 0:01:24.1]} 17. Ra2 {[%clk 0:01:06.3]} 17... Nd4+ {[%clk 0:01:24]} 18.
Kd3 {[%clk 0:00:41.9]} 18... Rxb3 {[%clk 0:00:47.7]} 19. Rxb3 {[%clk 0:00:33.6]}
19... Nxb3 {[%clk 0:00:48.6]} 20. Be3 {[%clk 0:00:26.1]} 20... Ng4 {[%clk
0:00:44.4]} 21. Nb5 {[%clk 0:00:05.4]} 21... Nxe3 {[%clk 0:00:15.2]} 22. Ra3
{[%clk 0:00:04.3]} 22... Na5 {[%clk 0:00:11.5]} 23. fxe3 {[%clk 0:00:03]} 23...
Kf8 {[%clk 0:00:09.4]} 24. h3 {[%clk 0:00:02.7]} 24... h6 {[%clk 0:00:09.8]} 25.
Nd2 {[%clk 0:00:02.7]} 25... f5 {[%clk 0:00:06.9]} 26. Nc4 {[%clk 0:00:02.9]}
26... fxe4+ {[%clk 0:00:06.6]} 27. Kxe4 {[%clk 0:00:02.1]} 27... Nxc4 {[%clk
0:00:07.5]} 0-1

[Event "Early-Titled-Tuesday-Blitz-October-10-2023"]
[Site "Chess.com"]
[Date "2023.10.10"]
[Round "9"]
[White "Beca95"]
[Black "Byniolus"]
[Result "1-0"]
[WhiteElo "2886"]
[BlackElo "2728"]
[TimeControl "180+1"]
[EndTime "9:43:41 PDT"]
[Termination "Beca95 won by resignation"]

1. e4 {[%clk 0:03:00.9]} 1... d6 {[%clk 0:02:59.8]} 2. Nc3 {[%clk 0:02:57.8]}
2... Nf6 {[%clk 0:03:00.7]} 3. f4 {[%clk 0:02:57.5]} 3... d5 {[%clk 0:03:00.7]}
4. e5 {[%clk 0:02:56.3]} 4... d4 {[%clk 0:03:01.3]} 5. exf6 {[%clk 0:02:51.3]}
5... dxc3 {[%clk 0:03:02.2]} 6. fxg7 {[%clk 0:02:51.2]} 6... cxd2+ {[%clk
0:03:01.4]} 7. Bxd2 {[%clk 0:02:50.3]} 7... Bxg7 {[%clk 0:03:02.3]} 8. c3 {[%clk
0:02:50.2]} 8... c6 {[%clk 0:02:25]} 9. Qc2 {[%clk 0:02:42.7]} 9... Qa5 {[%clk
0:02:21.8]} 10. Bd3 {[%clk 0:02:33.5]} 10... h5 {[%clk 0:02:20.2]} 11. Nf3
{[%clk 0:02:32.5]} 11... Nd7 {[%clk 0:02:18.7]} 12. O-O {[%clk 0:02:28.7]} 12...
h4 {[%clk 0:02:12]} 13. h3 {[%clk 0:02:15.3]} 13... Qh5 {[%clk 0:02:04.4]} 14.
b4 {[%clk 0:02:13.1]} 14... Nb6 {[%clk 0:01:34.5]} 15. Rae1 {[%clk 0:02:10.5]}
15... Rg8 {[%clk 0:01:23.9]} 16. Ng5 {[%clk 0:02:06.5]} 16... Bd7 {[%clk
0:00:57.7]} 17. a4 {[%clk 0:01:15.2]} 17... a5 {[%clk 0:00:48.3]} 18. bxa5
{[%clk 0:00:58.1]} 18... Nd5 {[%clk 0:00:46.7]} 19. c4 {[%clk 0:00:57.4]} 19...
Nc7 {[%clk 0:00:42.7]} 20. Be2 {[%clk 0:00:33.9]} 20... Qh8 {[%clk 0:00:33.4]}
21. Kh1 {[%clk 0:00:30.8]} 21... Ne6 {[%clk 0:00:28.4]} 22. Bg4 {[%clk
0:00:30.6]} 22... Nd4 {[%clk 0:00:18.2]} 23. Bxd7+ {[%clk 0:00:29.6]} 23... Kxd7
{[%clk 0:00:19.1]} 24. Qd3 {[%clk 0:00:28.6]} 24... Ke8 {[%clk 0:00:12.9]} 25.
c5 {[%clk 0:00:28.1]} 25... Rd8 {[%clk 0:00:09.4]} 26. Qc4 {[%clk 0:00:21.1]}
26... e6 {[%clk 0:00:06.7]} 27. a6 {[%clk 0:00:20.4]} 27... bxa6 {[%clk
0:00:04.4]} 28. Qxa6 {[%clk 0:00:19.6]} 28... Bf6 {[%clk 0:00:04.2]} 29. Bc3
{[%clk 0:00:19.4]} 29... Nf5 {[%clk 0:00:03.1]} 30. Qxc6+ {[%clk 0:00:18.1]}
30... Kf8 {[%clk 0:00:03.6]} 31. Bxf6 {[%clk 0:00:17.1]} 31... Qxf6 {[%clk
0:00:02.8]} 32. Nh7+ {[%clk 0:00:17.1]} 1-0

[Event "Early-Titled-Tuesday-Blitz-October-10-2023"]
[Site "Chess.com"]
[Date "2023.10.10"]
[Round "9"]
[White "Mr_ruthless"]
[Black "Likvidator228"]
[Result "0-1"]
[WhiteElo "2460"]
[BlackElo "2571"]
[TimeControl "180+1"]
[EndTime "9:43:41 PDT"]
[Termination "Likvidator228 won on time"]

1. e4 {[%clk 0:03:00.9]} 1... e5 {[%clk 0:02:57.7]} 2. Nf3 {[%clk 0:02:59.2]}
2... d6 {[%clk 0:02:56.7]} 3. d4 {[%clk 0:02:58.1]} 3... Nd7 {[%clk 0:02:56.7]}
4. Nc3 {[%clk 0:02:55.1]} 4... Ngf6 {[%clk 0:02:55.6]} 5. Bc4 {[%clk 0:02:54.6]}
5... h6 {[%clk 0:02:55.7]} 6. dxe5 {[%clk 0:02:48.9]} 6... dxe5 {[%clk
0:02:55.8]} 7. Nxe5 {[%clk 0:02:47.4]} 7... Nxe5 {[%clk 0:02:52.6]} 8. Qe2
{[%clk 0:02:43.8]} 8... Nxc4 {[%clk 0:02:51.4]} 9. Qxc4 {[%clk 0:02:43.1]} 9...
c6 {[%clk 0:02:51.7]} 10. Be3 {[%clk 0:02:41]} 10... Be6 {[%clk 0:02:51.5]} 11.
Qa4 {[%clk 0:02:36.1]} 11... Be7 {[%clk 0:02:43.2]} 12. O-O {[%clk 0:02:35.8]}
12... O-O {[%clk 0:02:43]} 13. Rad1 {[%clk 0:02:35.6]} 13... Qc7 {[%clk
0:02:43.2]} 14. h3 {[%clk 0:02:31.1]} 14... b5 {[%clk 0:02:36]} 15. Qa6 {[%clk
0:02:06.7]} 15... b4 {[%clk 0:02:35.2]} 16. Na4 {[%clk 0:02:01.7]} 16... Nxe4
{[%clk 0:02:34.7]} 17. Qe2 {[%clk 0:01:53.3]} 17... Bd5 {[%clk 0:02:29.5]} 18.
Qg4 {[%clk 0:01:24.8]} 18... f5 {[%clk 0:02:23.5]} 19. Qh5 {[%clk 0:01:19.3]}
19... Kh7 {[%clk 0:01:37.7]} 20. c4 {[%clk 0:00:53.4]} 20... bxc3 {[%clk
0:01:37.5]} 21. Nxc3 {[%clk 0:00:53.2]} 21... Nxc3 {[%clk 0:01:33.1]} 22. bxc3
{[%clk 0:00:53.8]} 22... f4 {[%clk 0:01:25.1]} 23. Bd4 {[%clk 0:00:51.4]} 23...
Bf6 {[%clk 0:01:08.4]} 24. Bc5 {[%clk 0:00:43.5]} 24... Rf7 {[%clk 0:01:02.2]}
25. Bd6 {[%clk 0:00:26.2]} 25... Qxd6 {[%clk 0:00:58.8]} 26. Qxf7 {[%clk
0:00:25.6]} 26... Qc5 {[%clk 0:00:32.7]} 27. Qd7 {[%clk 0:00:19.6]} 27... Qxc3
{[%clk 0:00:31.9]} 28. Qf5+ {[%clk 0:00:19.2]} 28... Kh8 {[%clk 0:00:30.9]} 29.
Qxf4 {[%clk 0:00:18.7]} 29... Re8 {[%clk 0:00:28.3]} 30. Rc1 {[%clk 0:00:14.2]}
30... Qb2 {[%clk 0:00:27.7]} 31. a4 {[%clk 0:00:11.8]} 31... Bg5 {[%clk
0:00:23.9]} 32. Rb1 {[%clk 0:00:03.8]} 32... Qxb1 {[%clk 0:00:23.1]} 0-1

[Event "Early-Titled-Tuesday-Blitz-October-10-2023"]
[Site "Chess.com"]
[Date "2023.10.10"]
[Round "9"]
[White "parintele_chess"]
[Black "wannabe2700"]
[Result "0-1"]
[WhiteElo "2274"]
[BlackElo "2647"]
[TimeControl "180+1"]
[EndTime "9:43:43 PDT"]
[Termination "wannabe2700 won by resignation"]

1. d4 {[%clk 0:02:04.9]} 1... Nf6 {[%clk 0:03:00.9]} 2. Bf4 {[%clk 0:02:03.6]}
2... Ne4 {[%clk 0:02:04.3]} 3. f3 {[%clk 0:01:58.7]} 3... g5 {[%clk 0:01:59.4]}
4. Bc1 {[%clk 0:01:57.2]} 4... d5 {[%clk 0:01:51.7]} 5. fxe4 {[%clk 0:01:55.3]}
5... dxe4 {[%clk 0:01:52.6]} 6. Bxg5 {[%clk 0:01:50.5]} 6... Bg7 {[%clk
0:01:52.5]} 7. Be3 {[%clk 0:01:45.4]} 7... c5 {[%clk 0:01:52.6]} 8. c3 {[%clk
0:01:42.4]} 8... Qb6 {[%clk 0:01:52.6]} 9. Qb3 {[%clk 0:01:41.3]} 9... Qg6
{[%clk 0:01:50.8]} 10. Nh3 {[%clk 0:01:36.4]} 10... O-O {[%clk 0:01:46.6]} 11.
Nf4 {[%clk 0:01:36]} 11... Qf5 {[%clk 0:01:25.9]} 12. g3 {[%clk 0:01:32.9]}
12... Nc6 {[%clk 0:01:20.7]} 13. Bh3 {[%clk 0:01:31.6]} 13... Qf6 {[%clk
0:01:20.8]} 14. Bxc8 {[%clk 0:01:27.4]} 14... Raxc8 {[%clk 0:01:21.7]} 15. O-O
{[%clk 0:01:25.9]} 15... cxd4 {[%clk 0:01:20.1]} 16. Nh5 {[%clk 0:01:10.7]}
16... Qg6 {[%clk 0:01:08.4]} 17. Nxg7 {[%clk 0:01:10.1]} 17... dxe3 {[%clk
0:01:05.7]} 18. Nf5 {[%clk 0:01:07.9]} 18... Kh8 {[%clk 0:00:59.3]} 19. Na3
{[%clk 0:00:56.4]} 19... Qg5 {[%clk 0:00:54.9]} 20. c4 {[%clk 0:00:50.5]} 20...
e6 {[%clk 0:00:53.5]} 21. Qc3+ {[%clk 0:00:49.8]} 21... f6 {[%clk 0:00:44.1]}
22. Qxe3 {[%clk 0:00:45.7]} 22... exf5 {[%clk 0:00:43.1]} 23. Qxg5 {[%clk
0:00:39.1]} 23... fxg5 {[%clk 0:00:44]} 24. Nb5 {[%clk 0:00:39]} 24... Rcd8
{[%clk 0:00:33.8]} 25. Rad1 {[%clk 0:00:37.8]} 25... a6 {[%clk 0:00:20.4]} 26.
Nd6 {[%clk 0:00:37.5]} 26... Ne5 {[%clk 0:00:16.6]} 27. b3 {[%clk 0:00:30.1]}
27... e3 {[%clk 0:00:16.9]} 28. Nxb7 {[%clk 0:00:28.7]} 28... Rxd1 {[%clk
0:00:16.2]} 29. Rxd1 {[%clk 0:00:29.6]} 29... f4 {[%clk 0:00:17.1]} 30. Rd5
{[%clk 0:00:26.7]} 30... Ng4 {[%clk 0:00:14.7]} 31. Rxg5 {[%clk 0:00:24.7]}
31... f3 {[%clk 0:00:15.1]} 32. Kf1 {[%clk 0:00:10.3]} 32... Nxh2+ {[%clk
0:00:15]} 33. Kg1 {[%clk 0:00:09.3]} 33... f2+ {[%clk 0:00:15.9]} 34. Kxh2
{[%clk 0:00:09.9]} 34... f1=Q {[%clk 0:00:16.8]} 0-1